bitfinex/quotes_BTCUSD_20241107
["timestamp","ask_amount","ask_price","bid_price","bid_amount"]
[1730949615362,0.0023935,75249.0,75248.0,0.31129539]
[1730949615826,0.0023935,75249.0,75248.0,0.15132255]
[1730949616177,0.0023935,75249.0,75248.0,0.16695481]
[1730949616382,0.0023935,75249.0,75248.0,0.15132255]
[1730949616747,0.00859947,75249.0,75248.0,0.15132255]
[1730949620013,0.00859947,75249.0,75248.0,0.01908153]
[1730949620213,0.00859947,75249.0,75234.0,0.005]
[1730949620214,0.00859947,75249.0,75235.0,0.15497284]
[1730949620477,0.00859947,75249.0,75242.0,0.1978931]
[1730949620670,0.00859947,75249.0,75243.0,0.1348987]
[1730949620837,0.00859947,75249.0,75248.0,0.15497284]
[1730949621039,0.0023935,75249.0,75248.0,0.28721386]
[1730949622708,0.0023935,75249.0,75248.0,0.15156169]
[1730949622909,0.18263307,75261.0,75248.0,0.16534372]
[1730949623093,0.18263307,75261.0,75249.0,0.13224102]
[1730949623497,0.00234447,75261.0,75249.0,0.13224102]
[1730949623969,0.005,75267.0,75250.0,0.00265772]
[1730949624165,0.20023757,75261.0,75251.0,0.14766296]
[1730949624606,0.20023757,75261.0,75251.0,0.01542194]
[1730949624847,0.20023757,75261.0,75236.0,0.15497284]
[1730949625048,0.00234447,75261.0,75251.0,0.01906137]
[1730949625207,0.1978931,75259.0,75237.0,0.13224102]
[1730949625411,0.00234447,75258.0,75241.0,0.1978931]
[1730949625612,0.20023757,75261.0,75244.0,0.1978931]
[1730949625822,0.20023757,75261.0,75245.0,0.13224102]
[1730949626586,0.20023757,75261.0,75248.0,0.001666]
[1730949626831,0.20107057,75261.0,75249.0,0.13224102]
[1730949627280,0.00317747,75261.0,75249.0,0.13224102]
[1730949627642,0.1978931,75260.0,75250.0,0.0133907]
[1730949627889,0.00234447,75259.0,75248.0,0.001666]
[1730949628097,0.00234447,75259.0,75249.0,0.13224102]
[1730949628743,0.00234447,75260.0,75249.0,0.13224102]
[1730949628940,0.006254,75258.0,75249.0,0.13224102]
[1730949629240,0.00859847,75257.0,75249.0,0.13224102]
[1730949630252,0.00859847,75257.0,75249.0,0.14563172]
[1730949630654,0.00859847,75257.0,75249.0,0.13224102]
[1730949631117,0.00234447,75257.0,75249.0,0.13224102]
[1730949631320,0.00234447,75260.0,75249.0,0.13224102]
[1730949632312,0.00234447,75260.0,75248.0,0.001666]
[1730949632515,0.00234447,75260.0,75242.0,0.01580976]
[1730949632741,0.00234447,75260.0,75245.0,0.1978931]
[1730949632913,0.00234447,75260.0,75246.0,0.13224102]
[1730949632914,0.20023757,75260.0,75246.0,0.13224102]
[1730949633747,0.1978931,75259.0,75246.0,0.13224102]
[1730949633964,0.00234447,75258.0,75246.0,0.13224102]
[1730949634664,0.000833,75261.0,75246.0,0.13224102]
[1730949634665,0.00317747,75261.0,75246.0,0.13224102]
[1730949634872,0.1978931,75260.0,75246.0,0.15164518]
[1730949635352,0.1978931,75259.0,75246.0,0.15164518]
[1730949635579,0.20023757,75259.0,75246.0,0.15164518]
[1730949635815,0.000833,75261.0,75251.0,0.15497284]
[1730949635816,0.00317747,75261.0,75251.0,0.15497284]
[1730949636038,0.1978931,75258.0,75252.0,0.13639199]
[1730949636283,0.00317747,75261.0,75253.0,0.00415097]
[1730949636530,0.00317747,75261.0,75254.0,0.13224102]
[1730949636775,0.1978931,75260.0,75254.0,0.14546512]
[1730949636994,0.00317747,75261.0,75254.0,0.14546512]
[1730949636995,0.00234447,75259.0,75254.0,0.14546512]
[1730949637263,0.000833,75261.0,75255.0,0.00415103]
[1730949637480,0.000833,75261.0,75255.0,0.13639205]
[1730949637710,0.1978931,75259.0,75255.0,0.00415103]
[1730949637951,0.00234447,75258.0,75246.0,0.01940416]
[1730949638217,0.00234447,75258.0,75238.0,0.105]
[1730949638218,0.00234447,75258.0,75249.0,0.1978931]
[1730949638443,1.5,75262.0,75250.0,0.13224102]
[1730949638666,0.000833,75258.0,75250.0,0.13224102]
[1730949640521,0.1978931,75257.0,75250.0,0.13224102]
[1730949640725,0.000833,75258.0,75250.0,0.13224102]
[1730949640900,0.000833,75258.0,75251.0,0.0153462]
[1730949641102,0.000833,75258.0,75252.0,0.13224102]
[1730949648002,0.1978931,75257.0,75249.0,0.01955503]
[1730949648224,0.000833,75258.0,75250.0,0.13224102]
[1730949648451,0.000833,75258.0,75246.0,0.001666]
[1730949648452,0.2753931,75257.0,75246.0,0.001666]
[1730949648673,0.0775,75257.0,75246.0,0.001666]
[1730949649117,0.0775,75257.0,75246.0,0.02053316]
[1730949649329,0.0775,75257.0,75246.0,0.02854201]
[1730949649558,0.0775,75257.0,75247.0,0.1978931]
[1730949649758,0.0775,75257.0,75246.0,0.02854201]
[1730949650264,0.0775,75257.0,75246.0,0.02053316]
[1730949652594,0.0775,75257.0,75247.0,0.00415151]
[1730949653038,0.0775,75257.0,75248.0,0.00415151]
[1730949653287,0.0775,75257.0,75249.0,0.00415151]
[1730949653520,0.0775,75257.0,75250.0,0.00415151]
[1730949653780,0.0535,75257.0,75251.0,0.00415151]
[1730949654007,0.0535,75257.0,75252.0,0.00415151]
[1730949654235,0.000833,75258.0,75246.0,0.02053316]
[1730949654236,0.000833,75258.0,75253.0,0.00415151]
[1730949654466,0.000833,75258.0,75247.0,0.05960293]
[1730949654692,0.000833,75258.0,75248.0,0.38973705]
[1730949654897,0.000833,75258.0,75250.0,0.05960293]
[1730949655100,0.000833,75258.0,75248.0,0.40960469]
[1730949655101,0.000833,75258.0,75251.0,0.19184395]
[1730949655312,0.000833,75258.0,75251.0,0.13224102]
[1730949655516,0.000833,75258.0,75252.0,0.02306211]
[1730949655728,0.000833,75258.0,75253.0,0.13224102]
[1730949656378,0.000833,75258.0,75256.0,0.15497284]
[1730949656595,0.000833,75258.0,75257.0,0.13224102]
[1730949657059,0.000833,75258.0,75257.0,0.23151994]
[1730949657289,0.000833,75258.0,75257.0,0.24950293]
[1730949657504,0.000833,75258.0,75257.0,0.15022401]
[1730949658147,0.000833,75258.0,75257.0,0.15288122]
[1730949658364,0.1978931,75269.0,75257.0,0.15288122]
[1730949658608,0.1978931,75269.0,75260.0,0.05953987]
[1730949658821,0.1978931,75269.0,75261.0,0.15530313]
[1730949659718,0.00199353,75277.0,75261.0,0.15530313]
[1730949659954,0.1978931,75273.0,75261.0,0.15530313]
[1730949660835,0.00199353,75277.0,75261.0,0.15530313]
[1730949661480,0.1978931,75273.0,75261.0,0.15530313]
[1730949661686,0.000833,75263.0,75262.0,0.01798299]
[1730949661903,0.000833,75263.0,75262.0,0.15022401]
[1730949662141,0.000833,75263.0,75262.0,0.13224102]
[1730949663574,0.000833,75263.0,75262.0,0.13639137]
[1730949664046,0.16884355,75273.0,75262.0,0.13639137]
[1730949664271,0.16884355,75273.0,75263.0,0.13639137]
[1730949664498,0.00199353,75277.0,75264.0,0.20204345]
[1730949664940,0.00199353,75277.0,75273.0,0.1978931]
[1730949664942,0.000753,75278.0,75276.0,0.15497284]
[1730949665183,0.000753,75278.0,75277.0,0.13639137]
[1730949665424,0.000753,75278.0,75277.0,0.14588016]
[1730949665686,0.000753,75278.0,75277.0,0.0041499]
[1730949665928,0.000753,75278.0,75277.0,0.01078975]
[1730949666890,0.000753,75278.0,75277.0,0.03474705]
[1730949667387,0.049753,75278.0,75277.0,0.01078975]
[1730949667609,0.17131255,75278.0,75277.0,0.0041499]
[1730949667830,1.67131255,75278.0,75277.0,0.0041499]
[1730949668056,1.67131255,75278.0,75254.0,0.0041499]
[1730949668279,1.67131255,75278.0,75266.0,0.1978931]
[1730949668280,0.002,75276.0,75266.0,0.1978931]
[1730949668529,0.005,75276.0,75267.0,0.0041499]
[1730949668772,0.049,75273.0,75268.0,0.0041499]
[1730949668993,0.0791,75272.0,75269.0,0.0041499]
[1730949669217,0.0791,75272.0,75259.0,0.0041499]
[1730949669480,0.0791,75272.0,75260.0,0.0041499]
[1730949669705,0.0791,75272.0,75261.0,0.0041499]
[1730949669924,0.0791,75272.0,75262.0,0.0041499]
[1730949670162,0.0791,75272.0,75263.0,0.0041499]
[1730949670383,0.0791,75272.0,75264.0,0.0041499]
[1730949670628,0.0791,75272.0,75265.0,0.0041499]
[1730949670870,0.005,75271.0,75266.0,0.0041499]
[1730949671122,0.005,75271.0,75253.0,0.0041499]
[1730949671356,0.005,75271.0,75261.0,0.1978931]
[1730949671357,0.0455,75270.0,75261.0,0.1978931]
[1730949671605,0.1455,75270.0,75262.0,0.0041499]
[1730949671827,0.1455,75270.0,75252.0,0.02601923]
[1730949671828,0.005,75267.0,75263.0,0.0041499]
[1730949672064,0.005,75267.0,75264.0,0.0041499]
[1730949672296,0.005,75267.0,75265.0,0.0041499]
[1730949672525,0.005,75267.0,75258.0,0.00415122]
[1730949672526,0.0455,75264.0,75258.0,0.00415122]
[1730949672736,0.0455,75264.0,75256.0,0.1978931]
[1730949672952,0.0455,75264.0,75259.0,0.00415138]
[1730949673167,0.0778,75263.0,75259.0,0.00415138]
[1730949673397,0.0778,75263.0,75260.0,0.00415138]
[1730949673398,1.5,75262.0,75260.0,0.00415138]
[1730949673631,1.5,75262.0,75261.0,0.00415138]
[1730949673858,1.507,75262.0,75261.0,0.00415138]
[1730949674088,1.97002626,75262.0,75261.0,0.00415138]
[1730949674309,0.017,75253.0,75252.0,0.001666]
[1730949674517,0.37254102,75253.0,75252.0,0.001666]
[1730949674944,0.34854102,75253.0,75252.0,0.001666]
[1730949675164,1.89158349,75253.0,75252.0,0.001666]
[1730949676461,0.1,75252.0,75242.0,0.001666]
[1730949676686,0.1,75250.0,75242.0,0.001666]
[1730949676909,0.15497284,75247.0,75242.0,0.001666]
[1730949677125,0.28721386,75247.0,75242.0,0.001666]
[1730949678053,1.83351386,75247.0,75242.0,0.001666]
[1730949678284,1.67854102,75247.0,75242.0,0.001666]
[1730949678784,1.5463,75247.0,75242.0,0.001666]
[1730949679006,1.5,75247.0,75242.0,0.001666]
[1730949679234,0.1,75254.0,75242.0,0.001666]
[1730949679447,0.13224102,75253.0,75242.0,0.001666]
[1730949679661,1.6,75252.0,75242.0,0.001666]
[1730949679883,1.73224102,75252.0,75242.0,0.001666]
[1730949680545,1.5,75252.0,75245.0,0.002]
[1730949680765,0.1294,75255.0,75245.0,0.002]
[1730949680995,0.26164102,75255.0,75242.0,0.003666]
[1730949681229,1.5,75254.0,75242.0,0.001666]
[1730949681911,1.5,75254.0,75242.0,0.003666]
[1730949682582,1.5,75254.0,75242.0,0.001666]
[1730949684204,1.5,75254.0,75244.0,0.002]
[1730949684432,1.5,75254.0,75248.0,0.1978931]
[1730949684657,1.5,75254.0,75244.0,0.002]
[1730949684895,1.5,75254.0,75246.0,0.003666]
[1730949685120,1.5,75254.0,75246.0,0.001666]
[1730949685357,0.1,75260.0,75246.0,0.003666]
[1730949685572,0.10976073,75261.0,75246.0,0.003666]
[1730949685573,0.1,75258.0,75246.0,0.001666]
[1730949686022,0.1,75258.0,75246.0,0.003666]
[1730949686980,0.1,75258.0,75246.0,0.02510238]
[1730949687209,0.1,75256.0,75246.0,0.001666]
[1730949687452,0.38721386,75258.0,75246.0,0.001666]
[1730949687907,0.1,75256.0,75246.0,0.001666]
[1730949688133,0.15497284,75252.0,75246.0,0.001666]
[1730949688833,1.5,75251.0,75246.0,0.001666]
[1730949691819,0.18104102,75255.0,75246.0,0.001666]
[1730949692047,0.0488,75255.0,75248.0,0.1978931]
[1730949692274,0.02776073,75261.0,75249.0,0.02195591]
[1730949692495,0.02776073,75261.0,75256.0,0.002]
[1730949692752,0.02776073,75261.0,75255.0,0.002]
[1730949692972,0.02776073,75261.0,75256.0,0.002]
[1730949693216,0.02776073,75261.0,75255.0,0.002]
[1730949693891,0.02776073,75261.0,75251.0,0.00415202]
[1730949694105,0.02776073,75261.0,75249.0,0.00415202]
[1730949694311,0.02776073,75261.0,75250.0,0.1978931]
[1730949694567,0.02776073,75261.0,75247.0,0.00415202]
[1730949694801,0.02776073,75261.0,75248.0,0.1978931]
[1730949695042,0.02776073,75261.0,75248.0,0.22013081]
[1730949695285,0.02776073,75261.0,75246.0,0.001666]
[1730949695286,0.02776073,75261.0,75247.0,0.00415202]
[1730949695503,0.02776073,75261.0,75248.0,0.20204512]
[1730949695719,0.02776073,75261.0,75248.0,0.1978931]
[1730949695945,0.02776073,75261.0,75248.0,0.20204512]
[1730949696174,0.02776073,75261.0,75249.0,0.02352711]
[1730949696394,0.02776073,75261.0,75254.0,0.002]
[1730949696894,0.02776073,75261.0,75255.0,0.00415202]
[1730949697101,0.02776073,75261.0,75256.0,0.00415202]
[1730949697312,0.02859373,75261.0,75257.0,0.00415202]
[1730949697519,0.02859373,75261.0,75258.0,0.00415202]
[1730949697728,0.02859373,75261.0,75259.0,0.00415202]
[1730949697937,0.02859373,75261.0,75260.0,0.00415202]
[1730949698187,0.02859373,75261.0,75246.0,0.001666]
[1730949698188,0.20564343,75261.0,75246.0,0.001666]
[1730949698408,0.15497284,75252.0,75248.0,0.1978931]
[1730949698613,1.5489,75251.0,75249.0,0.00415174]
[1730949698823,1.5489,75251.0,75250.0,0.00415174]
[1730949699031,1.5489,75251.0,75246.0,0.001666]
[1730949699032,0.1,75250.0,75247.0,0.00415174]
[1730949699254,0.1,75250.0,75246.0,0.001666]
[1730949699668,1.5,75249.0,75246.0,0.001666]
[1730949702497,0.13224102,75248.0,75246.0,0.001666]
[1730949702706,0.0751,75247.0,75246.0,0.001666]
[1730949702913,0.20734102,75247.0,75246.0,0.001666]
[1730949703124,1.70734102,75247.0,75246.0,0.001666]
[1730949706946,1.63224102,75247.0,75246.0,0.001666]
[1730949707371,1.60824102,75247.0,75246.0,0.001666]
[1730949710228,1.5,75247.0,75246.0,0.001666]
[1730949711646,0.000833,75251.0,75250.0,0.005]
[1730949711853,0.000833,75251.0,75250.0,0.03031388]
[1730949712301,0.000833,75251.0,75246.0,0.088166]
[1730949712506,0.000833,75251.0,75246.0,0.081166]
[1730949712717,0.000833,75251.0,75246.0,0.02528162]
[1730949712940,0.000833,75251.0,75246.0,0.001666]
[1730949713359,0.04441234,75251.0,75246.0,0.001666]
[1730949713611,0.000833,75251.0,75246.0,0.001666]
[1730949714071,0.13307402,75251.0,75246.0,0.001666]
[1730949714295,0.1,75250.0,75246.0,0.001666]
[1730949714923,1.5,75249.0,75246.0,0.001666]
[1730949715350,0.03,75248.0,75246.0,0.001666]
[1730949716041,1.5,75247.0,75246.0,0.001666]
[1730949720605,0.03,75248.0,75246.0,0.001666]
[1730949721489,0.000833,75247.0,75246.0,0.001666]
[1730949722652,0.000833,75247.0,75246.0,0.003666]
[1730949723088,0.000833,75247.0,75246.0,0.001666]
[1730949724784,0.000833,75247.0,75246.0,0.33603057]
[1730949724989,0.000833,75247.0,75246.0,0.35590509]
[1730949725629,0.000833,75247.0,75246.0,0.33597964]
[1730949725853,0.000833,75247.0,75246.0,0.144166]
[1730949726928,0.000833,75247.0,75246.0,0.088866]
[1730949727139,0.000833,75247.0,75246.0,0.098866]
[1730949727584,0.000833,75247.0,75246.0,0.093866]
[1730949727789,0.000833,75247.0,75246.0,0.088866]
[1730949728003,0.000833,75247.0,75246.0,0.093866]
[1730949728216,0.000833,75247.0,75246.0,0.001666]
[1730949733083,0.21207402,75247.0,75246.0,0.001666]
[1730949733312,0.23640307,75247.0,75246.0,0.001666]
[1730949733739,1.73640307,75247.0,75246.0,0.001666]
[1730949733984,1.71207402,75247.0,75246.0,0.001666]
[1730949734202,1.76688758,75247.0,75246.0,0.001666]
[1730949734411,1.71207402,75247.0,75246.0,0.001666]
[1730949734832,1.63307402,75247.0,75246.0,0.001666]
[1730949736662,1.78804686,75247.0,75246.0,0.001666]
[1730949736873,1.63307402,75247.0,75246.0,0.001666]
[1730949737985,1.500833,75247.0,75246.0,0.001666]
[1730949738410,1.500833,75247.0,75246.0,0.003666]
[1730949738411,0.000833,75247.0,75246.0,0.003666]
[1730949738617,0.000833,75247.0,75246.0,0.020862]
[1730949738834,0.000833,75247.0,75246.0,0.18083484]
[1730949739056,0.000833,75247.0,75246.0,0.025862]
[1730949739519,0.000833,75247.0,75246.0,0.18083484]
[1730949740178,0.000833,75247.0,75246.0,0.31807586]
[1730949740395,0.1978931,75259.0,75246.0,0.16310302]
[1730949740628,0.1978931,75259.0,75251.0,0.005]
[1730949740842,0.1978931,75259.0,75249.0,0.005]
[1730949741048,0.000833,75261.0,75253.0,0.007]
[1730949742166,0.000833,75261.0,75253.0,0.002]
[1730949742372,0.000833,75261.0,75253.0,0.007]
[1730949742581,0.000833,75261.0,75253.0,0.002]
[1730949742787,0.000833,75261.0,75253.0,0.007]
[1730949743474,0.000833,75259.0,75253.0,0.007]
[1730949743684,0.000833,75259.0,75256.0,0.1978931]
[1730949743898,0.000833,75259.0,75255.0,0.005]
[1730949744107,0.000833,75259.0,75257.0,0.0091514]
[1730949744329,0.000833,75259.0,75258.0,0.0041514]
[1730949744774,0.000833,75259.0,75258.0,0.0061514]
[1730949745420,0.000833,75259.0,75258.0,0.0041514]
[1730949747203,0.000833,75259.0,75250.0,0.002]
[1730949747414,0.000833,75259.0,75251.0,0.1978931]
[1730949747851,0.000833,75259.0,75250.0,0.002]
[1730949748310,0.000833,75259.0,75248.0,0.005]
[1730949748576,0.000833,75259.0,75247.0,0.007]
[1730949748781,0.000833,75259.0,75248.0,0.005]
[1730949749642,0.000833,75259.0,75251.0,0.002]
[1730949750935,0.000833,75259.0,75251.0,0.005]
[1730949751152,1.500833,75259.0,75252.0,0.00415144]
[1730949751354,1.500833,75259.0,75253.0,0.00415144]
[1730949751558,1.500833,75259.0,75254.0,0.00415144]
[1730949751763,1.500833,75259.0,75255.0,0.00415144]
[1730949751974,0.000833,75259.0,75256.0,0.00415144]
[1730949752177,0.000833,75259.0,75257.0,0.00415144]
[1730949752385,0.000833,75259.0,75258.0,0.00415144]
[1730949754184,0.000833,75259.0,75254.0,0.002]
[1730949754391,0.00036447,75259.0,75255.0,0.00415142]
[1730949754600,0.00036447,75259.0,75256.0,0.00415142]
[1730949754829,0.00036447,75259.0,75257.0,0.00415142]
[1730949755073,0.00036447,75259.0,75258.0,0.00415142]
[1730949755303,0.00036447,75259.0,75258.0,0.00615142]
[1730949755753,0.00036447,75259.0,75258.0,0.00415142]
[1730949757266,0.00036447,75259.0,75258.0,0.01925656]
[1730949757489,0.00036447,75259.0,75258.0,0.16149758]
[1730949757705,0.000833,75261.0,75260.0,0.007]
[1730949757920,0.000833,75261.0,75260.0,0.38611386]
[1730949758132,0.000833,75261.0,75260.0,0.37611386]
[1730949758344,0.000753,75279.0,75274.0,0.005]
[1730949758556,0.1680151,75275.0,75274.0,0.22774102]
[1730949758774,0.000753,75279.0,75275.0,0.012]
[1730949758978,0.000753,75279.0,75275.0,0.14424102]
[1730949759187,0.000753,75279.0,75275.0,0.15503072]
[1730949759847,0.000753,75279.0,75275.0,0.16003072]
[1730949760758,0.000753,75279.0,75275.0,0.16003052]
[1730949760973,0.000753,75279.0,75275.0,0.18371955]
[1730949761725,0.000753,75279.0,75275.0,0.18371907]
[1730949761940,1e-06,75279.0,75278.0,0.017]
[1730949762152,1e-06,75279.0,75278.0,0.31500288]
[1730949762366,1.500752,75305.0,75299.0,0.002]
[1730949762561,1.500752,75305.0,75299.0,0.00614962]
[1730949762761,0.000752,75305.0,75301.0,0.002]
[1730949762973,0.000752,75305.0,75301.0,0.15339064]
[1730949763173,1e-06,75302.0,75301.0,0.15339064]
[1730949763397,1e-06,75302.0,75301.0,0.16003004]
[1730949765443,1e-06,75302.0,75301.0,0.01578902]
[1730949765643,1e-06,75302.0,75301.0,0.01278902]
[1730949765857,1e-06,75302.0,75301.0,0.01078902]
[1730949766060,1e-06,75302.0,75301.0,0.00414962]
[1730949766278,0.03966729,75302.0,75301.0,0.00414962]
[1730949766499,1e-06,75302.0,75301.0,0.00414962]
[1730949767145,0.13224202,75302.0,75301.0,0.00414962]
[1730949767368,1.67190831,75302.0,75289.0,0.0041496]
[1730949767640,0.15497284,75297.0,75294.0,0.1978931]
[1730949767790,0.15497284,75297.0,75295.0,0.0041496]
[1730949767990,0.15497284,75297.0,75246.0,0.003666]
[1730949767991,0.15497284,75297.0,75296.0,0.0041496]
[1730949768198,0.15497284,75297.0,75279.0,0.002]
[1730949768199,0.15497284,75297.0,75283.0,0.01078917]
[1730949768393,0.13224102,75296.0,75290.0,0.1978931]
[1730949768602,1.5494,75295.0,75291.0,0.0041498]
[1730949768802,1.5494,75295.0,75283.0,0.00663968]
[1730949769030,1.5494,75295.0,75285.0,0.1978931]
[1730949769233,1.5494,75295.0,75286.0,0.00414979]
[1730949769438,1.5494,75295.0,75287.0,0.00414979]
[1730949769643,1.5494,75295.0,75275.0,0.002]
[1730949769644,1.5494,75295.0,75288.0,0.00414979]
[1730949769910,1.5494,75295.0,75289.0,0.00414979]
[1730949770126,1.5494,75295.0,75290.0,0.00414979]
[1730949770330,1.5494,75295.0,75291.0,0.00414979]
[1730949770556,1.5494,75295.0,75292.0,0.00414979]
[1730949770755,1.5494,75295.0,75293.0,0.00414979]
[1730949770986,1.5494,75295.0,75281.0,0.00863967]
[1730949771188,1.5494,75295.0,75285.0,0.1978931]
[1730949771390,1.5494,75295.0,75286.0,0.01078947]
[1730949771594,1.68164102,75295.0,75287.0,0.01078947]
[1730949771840,1.68164102,75295.0,75288.0,0.0041498]
[1730949772158,1.68164102,75295.0,75276.0,0.00663967]
[1730949772159,0.1,75290.0,75289.0,0.0041498]
[1730949772367,0.23224102,75290.0,75278.0,0.00415025]
[1730949772552,0.1,75288.0,75283.0,0.1978931]
[1730949772752,0.1,75286.0,75280.0,0.00415025]
[1730949772955,0.13224102,75285.0,75281.0,0.00415025]
[1730949773118,0.13224102,75285.0,75272.0,0.00663967]
[1730949773321,0.13224102,75285.0,75276.0,0.1978931]
[1730949773522,0.13224102,75285.0,75277.0,0.01079015]
[1730949773899,0.32593525,75285.0,75278.0,0.01079015]
[1730949774080,0.28721386,75285.0,75279.0,0.00415048]
[1730949774306,1.5,75284.0,75280.0,0.00415048]
[1730949774436,0.13224102,75283.0,75281.0,0.00415048]
[1730949774637,0.13224102,75283.0,75271.0,0.00663967]
[1730949774840,0.13224102,75283.0,75276.0,0.1978931]
[1730949775039,1.5,75282.0,75277.0,0.00415049]
[1730949775293,0.13224102,75281.0,75278.0,0.00415049]
[1730949775494,0.13224102,75281.0,75279.0,0.00415045]
[1730949775721,0.13224102,75281.0,75280.0,0.00415045]
[1730949775922,0.1,75286.0,75280.0,0.00415045]
[1730949776172,0.15497284,75291.0,75281.0,0.00415045]
[1730949776173,0.13224102,75285.0,75281.0,0.00415045]
[1730949776341,0.13224102,75285.0,75272.0,0.00415045]
[1730949776583,0.13224102,75285.0,75267.0,0.01]
[1730949776584,0.13224102,75285.0,75275.0,0.1978931]
[1730949776797,0.13224102,75285.0,75276.0,0.00415045]
[1730949776959,0.15497284,75283.0,75277.0,0.00415045]
[1730949777168,0.28721386,75283.0,75278.0,0.00415045]
[1730949777329,0.28721386,75283.0,75279.0,0.00415045]
[1730949777696,1.5,75280.0,75269.0,0.00415045]
[1730949777880,1.5,75280.0,75278.0,0.001666]
[1730949778304,1.5,75280.0,75279.0,0.00415045]
[1730949778912,1.5,75280.0,75278.0,0.001666]
[1730949779138,1.5,75280.0,75279.0,0.00415048]
[1730949779558,0.1,75292.0,75279.0,0.00415048]
[1730949779769,0.1,75292.0,75278.0,0.001666]
[1730949779770,0.1,75290.0,75280.0,0.00415048]
[1730949779978,0.1978931,75293.0,75281.0,0.00415048]
[1730949779979,0.1,75288.0,75281.0,0.00415048]
[1730949780179,0.13224102,75287.0,75282.0,0.00415048]
[1730949780413,0.1,75288.0,75283.0,0.00415048]
[1730949780622,0.23224102,75288.0,75284.0,0.00415048]
[1730949780837,0.23224102,75288.0,75285.0,0.00415048]
[1730949781041,0.23224102,75288.0,75286.0,0.00415048]
[1730949781262,0.23224102,75288.0,75287.0,0.00415048]
[1730949783244,0.23224102,75288.0,75278.0,0.001666]
[1730949783469,0.23224102,75288.0,75280.0,0.1978931]
[1730949783470,0.15497284,75282.0,75280.0,0.1978931]
[1730949783684,0.20834102,75281.0,75278.0,0.001666]
[1730949784113,0.1458,75280.0,75278.0,0.001666]
[1730949784331,0.23224102,75279.0,75278.0,0.001666]
[1730949784556,0.23224102,75279.0,75278.0,0.002666]
[1730949784781,1.73224102,75279.0,75278.0,0.002666]
[1730949785213,1.73224102,75279.0,75278.0,0.001666]
[1730949785675,2.04964631,75279.0,75278.0,0.001666]
[1730949785894,2.18188908,75279.0,75278.0,0.001666]
[1730949786639,2.18188908,75279.0,75245.0,0.00664172]
[1730949786640,0.2449,75270.0,75250.0,0.00415181]
[1730949786900,0.15497284,75251.0,75239.0,0.00664172]
[1730949787120,0.15497284,75251.0,75248.0,0.00415215]
[1730949787367,0.123,75267.0,75242.0,0.003666]
[1730949787368,1.5,75250.0,75242.0,0.003666]
[1730949787609,1.5,75250.0,75243.0,0.00415226]
[1730949787841,1.5,75250.0,75244.0,0.00415226]
[1730949788061,1.5,75250.0,75245.0,0.00415226]
[1730949788291,1.5,75250.0,75248.0,0.001]
[1730949789554,1.5,75250.0,75242.0,0.001666]
[1730949793061,1.5,75250.0,75247.0,0.002666]
[1730949795847,1.5,75250.0,75247.0,0.001666]
[1730949798569,0.13224102,75249.0,75247.0,0.001666]
[1730949799268,0.13224102,75249.0,75248.0,0.00415228]
[1730949799739,0.0477,75253.0,75248.0,0.00415228]
[1730949799967,1.5,75249.0,75247.0,0.001666]
[1730949800183,1.5,75249.0,75248.0,0.00415212]
[1730949800889,0.0453,75261.0,75248.0,0.00415212]
[1730949801105,0.13224102,75259.0,75249.0,0.00415212]
[1730949801319,0.13224102,75259.0,75250.0,0.01079583]
[1730949801554,1.5,75258.0,75251.0,0.01079583]
[1730949801784,1.5,75258.0,75252.0,0.01079583]
[1730949802008,0.03,75253.0,75247.0,0.001666]
[1730949802251,0.03,75253.0,75248.0,0.01079495]
[1730949802483,0.03,75253.0,75249.0,0.20868805]
[1730949802705,0.03,75253.0,75252.0,0.002]
[1730949802915,0.03,75253.0,75252.0,0.09759495]
[1730949803351,6e-05,75260.0,75254.0,0.002]
[1730949803602,6e-05,75260.0,75259.0,0.002]
[1730949803807,6e-05,75260.0,75259.0,0.01779495]
[1730949804488,6e-05,75260.0,75259.0,0.03891699]
[1730949804733,6e-05,75260.0,75259.0,0.04391699]
[1730949805144,6e-05,75260.0,75259.0,0.12411699]
[1730949806029,6e-05,75260.0,75259.0,0.10299495]
[1730949806252,6e-05,75260.0,75259.0,0.10299156]
[1730949807303,6e-05,75260.0,75259.0,0.24023258]
[1730949807933,6e-05,75260.0,75259.0,0.12660889]
[1730949809591,6e-05,75260.0,75259.0,0.26384991]
[1730949809792,6e-05,75260.0,75259.0,0.26384992]
[1730949812058,6e-05,75260.0,75259.0,0.57922276]
[1730949812199,0.19988714,75279.0,75277.0,0.30027284]
[1730949812488,0.19988714,75279.0,75277.0,0.55330543]
[1730949812838,1.5,75314.0,75294.0,0.0946]
[1730949812977,1.5,75314.0,75294.0,0.24294199]
[1730949813374,1.5,75314.0,75294.0,0.40206543]
[1730949813582,0.1978931,75319.0,75301.0,0.002]
[1730949813780,0.1978931,75319.0,75301.0,0.02278623]
[1730949816735,8e-05,75311.0,75301.0,0.02278623]
[1730949817590,8e-05,75311.0,75301.0,0.03108272]
[1730949818756,8e-05,75311.0,75301.0,0.32329658]
[1730949819336,8e-05,75311.0,75301.0,0.16832374]
[1730949820257,8e-05,75311.0,75301.0,0.14924102]
[1730949820473,8e-05,75311.0,75301.0,0.16832237]
[1730949822029,8e-05,75311.0,75301.0,0.02908135]
[1730949822671,8e-05,75311.0,75301.0,0.03108135]
[1730949822869,8e-05,75311.0,75301.0,0.02408135]
[1730949823076,8e-05,75311.0,75301.0,0.02608135]
[1730949823512,0.1978931,75310.0,75303.0,0.00404331]
[1730949823712,1.5,75309.0,75304.0,0.01908135]
[1730949823924,1.5,75309.0,75303.0,0.00904331]
[1730949823925,1.5,75309.0,75305.0,0.01908298]
[1730949824139,1.5,75309.0,75306.0,0.00663756]
[1730949824342,1.5,75309.0,75307.0,0.01908275]
[1730949824575,1.5,75309.0,75308.0,0.01908275]
[1730949825050,1.5,75309.0,75308.0,0.02108275]
[1730949825470,1.5,75309.0,75308.0,0.01908275]
[1730949826928,1.5,75309.0,75308.0,0.0107859]
[1730949827358,1.5,75309.0,75303.0,0.005]
[1730949827615,1.5,75309.0,75308.0,0.00829766]
[1730949827821,1.5,75309.0,75308.0,0.01078696]
[1730949828030,1.5,75309.0,75308.0,0.01908462]